Cogmind - Beta 15 @@@ ROGUE MODE // 2025.10.12 @ 16:13:40 Player: welikiq Result: Self-destructed Performance ------------- Evolutions (1) 500 Regions Visited (2) 400 Robots Destroyed (41) 205 Value Destroyed (743) 743 Prototype IDs (3) 60 Alien Tech Used (0) 0 Bonus (0) 0 TOTAL SCORE: 1908 Bonus ------- None Cogmind --------- Core Integrity 44/400 Matter 205/300 Energy 100/100 System Corruption 9% Temperature Cool (32) Movement Core (400) Ox7 Location -9/Materials Parts ------- > --- POWER (1) -------- (None) > --- PROPULSION (4) --- (None) > --- UTILITY (2) ------ Large Storage Unit Improved Targeting Computer > --- WEAPON (2) ------- Autogun > --- INVENTORY (15) --- Aluminum Leg Aluminum Leg Small Storage Unit Visual Processing Unit Improved Targeting Computer Light Armor Plating Light Armor Plating Small Laser Peak State ------------ > --- POWER ------------ Heavy Ion Engine > --- PROPULSION ------- Aluminum Leg Aluminum Leg Aluminum Leg Aluminum Leg > --- UTILITY ---------- Large Storage Unit Improved Targeting Computer > --- WEAPON ----------- Heavy Assault Rifle Light Cannon > --- INVENTORY -------- Ion Engine Ion Engine Aluminum Leg Aluminum Leg Small Storage Unit Improved Targeting Computer Small Laser Beam Rifle Light Assault Rifle Grenade Launcher Mini Grenade Launcher Mini Grenade Launcher [Rating: 14] Favorites ----------- Power Ion Engine Engine Ion Engine Propulsion Aluminum Leg Leg Aluminum Leg Utility Large Storage Unit Device Seismic Detector Storage Large Storage Unit Processor Improved Targeting Computer Weapon Small Laser Energy Gun Small Laser Ballistic Gun Heavy Assault Rifle Ballistic Cannon Light Cannon Build | -11 -10 -9 ------- Run | Yrd Mat Mat Slots Evolved 2 | . . 2 Power . | . . . Propulsion 2 | . . 2 Utility . | . . . Weapon . | . . . Parts Attached 30 | 7 7 16 Power 6 | 2 1 3 Engine 6 | 2 1 3 Core . | . . . Reactor . | . . . Propulsion 9 | 2 1 6 Treads . | . . . Leg 9 | 2 1 6 Wheel . | . . . Hover . | . . . Flight . | . . . Utility 4 | 1 3 . Device 1 | . 1 . Storage 2 | 1 1 . Processor 1 | . 1 . Hackware . | . . . Protection . | . . . Artifact . | . . . Weapon 11 | 2 2 7 Energy Gun 5 | 2 1 2 Energy Cannon . | . . . Ballistic Gun 5 | . 1 4 Ballistic Cannon 1 | . . 1 Launcher . | . . . Special Weapon . | . . . Impact Weapon . | . . . Slashing Weapon . | . . . Piercing Weapon . | . . . Special Melee Weapon . | . . . Unidentified Prototypes 1 | . . 1 Parts Lost 15 | . 1 14 Power 5 | . 1 4 Propulsion 5 | . . 5 Utility . | . . . Weapon 5 | . . 5 Highest Loss Streak 12 | . 1 12 To Critical Strikes . | . . . Average Backups 9 | 1 7 11 Power 1 | . 1 . Propulsion 1 | . . 1 Utility 1 | . . 2 Weapon 5 | . 4 6 Tool/Special . | . . . Unused Backups 8 | . . 8 Power . | . . . Propulsion . | . . . Utility 4 | . . 4 Weapon 4 | . . 4 Tool/Special . | . . . Average Slot Usage (%) 90 | . 94 88 Engine 11 | . 13 9 Leg 31 | . 26 36 Device 3 | . 8 . Storage 12 | . 14 11 Processor 7 | . 3 11 Energy Gun 9 | . 19 2 Ballistic Gun 9 | . 6 11 Ballistic Cannon 3 | . . 6 Peak Build Rating 14 | 6 9 14 Average Rating 8 | 3 7 10 On Entrance 4 | . 6 7 Naked Turns . | . . . Heaviest Build 31 | 12 28 31 Greatest Support 40 | 20 20 40 Greatest Overweight (x) 7 | 3 2 7 Average Overweight (x) . | . . . Largest Inventory Capacity 15 | 8 15 15 Average Capacity 13 | 6 12 15 Most Carried 15 | 5 13 15 Average Carried 9 | 2 7 11 Final Capacity 15 | 8 15 15 Final Carried 13 | 2 13 8 Class Distribution -------------------- 62% | Mutant 37% | Scavenger-Mutant Dominant Class ---------------- Mutant | -10/Materials Scavenger-Mutant | -9/Materials Resources | -11 -10 -9 ----------- Run | Yrd Mat Mat Matter Collected 822 | 231 171 420 Remotely . | . . . Salvage Created 1249 | . 301 948 Parts 90 | . 24 66 Haulers Intercepted 1 | . . 1 Recyclers Shooed 1 | . 1 . Parts Field Recycled . | . . . Retrieved Matter . | . . . Parts Self-Destructed . | . . . Prevented . | . . . Kills | -11 -10 -9 ------- Run | Yrd Mat Mat Combat Hostiles Destroyed 29 | . 11 18 Guns 26 | . 11 15 Cannons 3 | . . 3 Classes Destroyed 8 | . 3 5 Worker 4 | . . 4 Builder 1 | . . 1 Hauler 1 | . . 1 Recycler 5 | . 1 4 Mechanic 1 | . . 1 Swarmer 16 | . 9 7 Grunt 9 | . 2 7 Sentry 4 | . . 4 Best Kill Streak 6 | . 3 6 Combat Bots Only 6 | . 3 6 Max Kills in Single Turn 2 | . 1 2 Gunslinging . | . . . Exploded . | . . . Melee . | . . . Uniques/NPCs Destroyed . | . . . Combat | -11 -10 -9 -------- Run | Yrd Mat Mat Hostile Shots Fired 268 | . 68 200 Missed 71 | . 11 60 Hits 197 | . 57 140 Projectile 197 | . 57 140 Critical Strikes 2 | . 1 1 Damage Taken 2253 | . 532 1721 Core 492 | . 136 356 Absorbed by Shields . | . . . Regen/Repaired (Parts) 19 | . . 19 Core Remaining (%) 72 | 100 45 . Volleys Fired 108 | . 40 68 Largest 2 | . 2 2 Hottest 80 | . 80 79 Shots Fired 194 | . 80 114 Gun 161 | . 80 81 Cannon 33 | . . 33 Launcher . | . . . Special . | . . . Kinetic 130 | . 22 108 Thermal 62 | . 58 4 Explosive . | . . . Electromagnetic 2 | . . 2 Robot Hit Streak 21 | . 12 21 Robot Miss Streak 4 | . 4 3 Penetration Max . | . . . Secondary Targets 1 | . 1 . Max Gunslinging Chain 1 | . 1 . Shots Hit Robots 126 | . 48 78 Core Hits 57 | . 19 38 Critical Kills 1 | . . 1 Critical Parts Destroyed . | . . . Critical Strikes 3 | . . 3 Destroy 1 | . . 1 Blast 2 | . . 2 Melee Attacks . | . . . Impact . | . . . Slashing . | . . . Piercing . | . . . Sneak Attacks . | . . . Combat Hostiles . | . . . Follow-up Attacks . | . . . Damage Inflicted 1805 | . 498 1307 Guns 1413 | . 498 915 Cannons 363 | . . 363 Explosions 29 | . . 29 Melee . | . . . Ramming . | . . . Kinetic 1306 | . 87 1219 Thermal 432 | . 411 21 Explosive 29 | . . 29 Electromagnetic 38 | . . 38 Impact . | . . . Slashing . | . . . Piercing . | . . . Highest Corruption 9 | . . 9 Average Corruption 9 | . . 9 Corruption Purged . | . . . Corruption Blocked . | . . . Effects 3 | . . 3 Message Errors 1 | . . 1 Heat Flow Errors 1 | . . 1 Weapon Failures 1 | . . 1 Overload Shots . | . . . Overflow Damage 9 | . . 9 Projectiles . | . . . Explosions 9 | . . 9 Melee . | . . . Knockbacks 5 | . . 5 Impact . | . . . Kinetic 5 | . . 5 Secondary . | . . . Self-Inflicted Damage 64 | . . 64 Shots 1 | . . 1 Rammed . | . . . Targets Rammed . | . . . Kicked . | . . . Crushed . | . . . Highest Temperature 455 | . 273 455 Average Temperature 82 | . 75 95 Received Heat Transfer 531 | . 111 420 Siege Activations . | . . . Martial Activations . | . . . Shielding Activations . | . . . Robots Disrupted . | . . . Combat Hostiles . | . . . Robots Corrupted . | . . . Combat Hostiles . | . . . Parts Fried . | . . . Impact Corruptions . | . . . Robots Melted . | . . . Combat Hostiles . | . . . Parts Melted 3 | . 3 . Heat Transferred 975 | . 925 50 Parts Sabotaged . | . . . Parts Stolen . | . . . Parts Stripped . | . . . Power Chain Reactions . | . . . Alert | -11 -10 -9 ------- Run | Yrd Mat Mat Maximum Alert Level 1 | . . 1 Low Security (%) 98 | 100 100 97 Level 1 1 | . . 2 Level 2 . | . . . Level 3 . | . . . Level 4 . | . . . Level 5 . | . . . High Security . | . . . Max Security . | . . . Peak Influence 208 | . 132 208 Initial 23 | . . 23 Average 40 | . 43 42 Influence Increases 891 | . 315 576 Destroy 0b10 Robot/C 580 | . 220 360 Destroy 0b10 Robot/NC 60 | . 5 55 Destroy Leader 112 | . 40 72 Successful Hack 13 | . 5 8 Disable Machine 45 | . . 45 Destroy Structure 21 | . . 21 Lose Combat Pursuer 60 | . 45 15 Influence Decreases 683 | . 259 424 Entered New Map 33 | . . 33 Time Decay 510 | . 249 261 Lost Part 140 | . 10 130 Squads Dispatched 3 | . 1 2 Investigation 2 | . . 2 Extermination . | . . . Reinforcement 1 | . 1 . Assault . | . . . Garrison . | . . . Intercept . | . . . Searches Triggered . | . . . Construction Impeded . | . . . Haulers Reinforced . | . . . Active Scanning Responses . | . . . Cargo Convoy Interrupts . | . . . Stealth | -11 -10 -9 --------- Run | Yrd Mat Mat Distress Signals 2 | . . 2 Communications Jammed . | . . . Distress Signals . | . . . Times Spotted 39 | . 15 24 Peak Tracking Total 10 | . 4 10 Tactical Retreats 3 | . 2 1 Traps | -11 -10 -9 ------- Run | Yrd Mat Mat Traps Triggered 2 | . 1 1 Indirectly . | . . . Trap Hack Attempts . | . . . Triggered . | . . . Disarmed . | . . . Reprogrammed . | . . . Reused . | . . . Traps Extracted . | . . . Installed . | . . . Triggered . | . . . Machines | -11 -10 -9 ---------- Run | Yrd Mat Mat Machines Disabled 3 | . . 3 Max in Single Turn 1 | . . 1 Machines Repaired . | . . . Machines Dismantled . | . . . Machines Sabotaged . | . . . Overloaded Fab Kills . | . . . Hacking | -11 -10 -9 --------- Run | Yrd Mat Mat Machines Accessed 9 | . 3 6 Terminals 6 | . 3 3 Fabricators . | . . . Repair Stations 1 | . . 1 Recycling Units 1 | . . 1 Scanalyzers 1 | . . 1 Garrison Access . | . . . Total Hacks 19 | . 7 12 Successful 13 | . 5 8 Failed 6 | . 2 4 Catastrophic . | . . . Database Lockouts . | . . . Manual 5 | . 2 3 Terminals 14 | . 7 7 Fabricators . | . . . Repair Stations 2 | . . 2 Recycling Units 1 | . . 1 Scanalyzers 2 | . . 2 Garrison Access . | . . . Terminal Hacks 9 | . 5 4 Record 1 | . . 1 Prototype ID Bank 1 | . 1 . Alert Level 4 | . 3 1 Hauler Manifests 2 | . 1 1 Zone Layout 1 | . . 1 Fabricator Hacks . | . . . Repair Station Hacks 2 | . . 2 Scan Component 1 | . . 1 Repair 1 | . . 1 Recycling Unit Hacks . | . . . Scanalyzer 2 | . . 2 Insert Component 1 | . . 1 Analyze 1 | . . 1 Garrison Access Hacks . | . . . Unauthorized Hacks . | . . . Terminals . | . . . Fabricators . | . . . Repair Stations . | . . . Recycling Units . | . . . Scanalyzers . | . . . Garrison Access . | . . . Data Cores Recovered . | . . . Used . | . . . Hacking Detections 8 | . 2 6 Full Trace Events 1 | . . 1 Feedback Events . | . . . Feedback Blocked . | . . . Robot Schematics Acquired . | . . . Robots Built . | . . . Authchips . | . . . Time . | . . . Total Robot Build Rating . | . . . Part Schematics Acquired 1 | . . 1 Parts Built . | . . . Authchips . | . . . Time . | . . . Total Part Build Rating . | . . . Parts Repaired 1 | . . 1 Time 26 | . . 26 Parts Recycled . | . . . Recycled Matter . | . . . Retrieved Matter . | . . . Retrieved Components . | . . . Parts Scanalyzed 1 | . . 1 Part Schematics Acquired 1 | . . 1 Parts Damaged . | . . . Bothacking | -11 -10 -9 ------------ Run | Yrd Mat Mat Used RIF Installer . | . . . Robots Hacked . | . . . Non-combat . | . . . Combat . | . . . Robot Hacks Applied . | . . . Relay Couplers Released . | . . . Fabnet Peak Effective % . | . . . Robots Rewired . | . . . Allies Hacked . | . . . Hacks Repelled . | . . . Allies | -11 -10 -9 -------- Run | Yrd Mat Mat Total Allies . | . . . Largest Group . | . . . Highest-Rated Group . | . . . Highest-Rated Ally . | . . . Total Orders . | . . . Ally Attacks . | . . . Total Damage . | . . . Kills . | . . . Allies Corrupted . | . . . Allies Melted . | . . . Intel | -11 -10 -9 ------- Run | Yrd Mat Mat Active Infowar (turns) 588 | . 588 . Seismic 588 | . 588 . Robot Analysis Total . | . . . Derelict Logs Recovered . | . . . Drone Launches . | . . . Drone Recoveries . | . . . Exploration | -11 -10 -9 ------------- Run | Yrd Mat Mat Turns Passed 2202 | 125 919 1158 Spaces Moved 1122 | 119 452 551 Core 93 | 82 . 11 Treads . | . . . Legs 1029 | 37 452 540 Wheels . | . . . Hover . | . . . Flight . | . . . Fastest Speed 50 | 50 120 120 Average Speed 138 | 92 166 126 Slowest Speed 400 | 200 260 400 Overloaded Moves . | . . . Propulsion Burnouts . | . . . Robots Hopped . | . . . Potential Cave-ins . | . . . Cave-ins Triggered 1 | . . 1 Exploration Rate (%) 27 | 4 41 37 Regions Visited 2 Branch Regions . Pre-discovered Areas . | . . . Known Exits Taken . | . . . Unknown Exits Taken 2 | 1 1 . Scrap Searched . | . . . Spaces Dug . | . . . Terrain Destroyed 19 | . . 19 Melee . | . . . Projectile . | . . . AOE 19 | . . 19 Terrain Rammed . | . . . Walls Destroyed . | . . . Machines Disabled . | . . . Actions | -11 -10 -9 --------- Run | Yrd Mat Mat Total 1582 | 133 541 908 Wait 258 | . 22 236 Move 1120 | 118 451 551 Hop . | . . . Pick Up 41 | 8 14 19 Fast Attach . | . . . Attach 25 | 6 2 17 Detach 2 | . . 2 Swap 16 | 1 11 4 Drop 12 | . 1 11 Fire 108 | . 40 68 Melee . | . . . Ram . | . . . Kick . | . . . Crush . | . . . Escape Stasis . | . . . Rewire . | . . . Trap . | . . . Miscellaneous . | . . . Route ------- -11/Scrapyard -10/Materials -9/Materials (discovered 2 exits: [*Mat] / [*Min]) History --------- Turn | Location | Event 25 | -11/Scrapyard | Discovered new exit (range 16) 126 | -11/Scrapyard | Entered Materials 335 | -10/Materials | Build established: Mutant 532 | -10/Materials | Discovered new exit (range 3) 763 | -10/Materials | Core integrity fell below 50% 1045 | -10/Materials | Entered another Materials area 1045 | -9/Materials | Evolved 2 slots: Propulsion x2 1619 | -9/Materials | Repaired Aluminum Leg 1656 | -9/Materials | Discovered new exit (range 16) 1689 | -9/Materials | Build established: Scavenger-Mutant 2084 | -9/Materials | Discovered new exit (range 9) 2093 | -9/Materials | Crushed by falling debris 2120 | -9/Materials | Core integrity fell below 50% 2141 | -9/Materials | Core integrity fell below 20% 2175 | -9/Materials | Lost 12 parts (2p5n5w) 2203 | -9/Materials | Self-destructed Last Messages --------------- 02105_ Aluminum Leg destroyed. 02105_ S-10 Pest destroyed. 02111_ Aluminum Leg destroyed. 02117_ Hvy. Assault Rifle destroyed. 02125_ EM Shotgun destroyed. 02126_ S-10 Pest destroyed. 02129_ G-34 Mercenary destroyed. 02131_ S-10 Pest destroyed. 02135_ Ion Engine destroyed. 02136_ Autogun destroyed. 02144_ Beam Rifle destroyed. 02144_ S-10 Pest destroyed. 02148_ U-05 Engineer destroyed. 02151_ G-34 Mercenary destroyed. 02165_ Acquired 10 matter. 02166_ |=UTCB7Z:L SBLC%IGG#0RX84Z& I 02192_ K-01 Serf collects debris. 02196_ System corrupted: Heat flow error (+159). 02196_ K-01 Serf collects debris. 02201_ Electrolysis Chamber disabled. Map ----- +----------------------------------------------------+ | ?????????????????????????????????????????????????? | | ?????????????????????????????????????????????????? | | ?????????????????????????????????????????????????? | | ?????????????????????????????????????????????????? | | ????????????????????????????????? ?????????????? | | ????????????????????????????????? ?????????????? | | ????????????????????????????????? ?????????????? | | ????????????????????????????????# #????????????? | | ????????????????????????????????# #????????????? | | ????????????????????????????????# #????????????? | | ????????????????????????????????# #????????????? | | ????????????????????????????????# #????????????? | | ???????????????????????????????? #???######???? | | #???????????????????????????????# #?"""""""#???? | | ???????????????????????????????# #?" |"| "#???? | | #?????????????????? ?????###### ##" "###?? | | #??????????????????? #????? ?? | | +????????????????????+ ?????? =! < ?? | | #????????????????????# ??????? *%[ ?? | | #?????????????????????#+######### ##### | | #?????????????????????# ##+ # ##### | | #?????????????????????# # =[* ## | | #?????????????????????# """#% = ## | | #?????????????????????# = """#! = """ ## | | #?????????????????????# [ ""# """ ## | | ###########???????????# @ k*= #* """ ## | | ## T #???????????# =%* # ### | | ## """ #???????????##+####+#### # ##### | | ## """ #???????????# !%[% %! %[! | | ## """ =#???????????# %=[%= =[][ | | ## #???????????# %!*[= **]!] | | ## """ #???????????# ##"T"#######+######## | | ## """ #???????????# ##"""#??????????????### | | ## """ #???????????# ######????????????????? | | ## #???????????# ##????????????????????? | | ###+#############+### #????????????????????? | | #????????????????????? | | #????????????????????? | | % ! #????????????????????? | | ###/#############+### #????????????????????? | | ##!%= ## ##########?????????????????? | | ## [=[ ## """ """ # #?????????????????? | | ## *= [ ## """ """ # """ #?????????????????? | | ## ![[ ## """ """ # """"" #?????????????????? | | ## "" ## """ """ # """"" #?????????????????? | | ## """"" ## # """"" #?????????????????? | | ## """"" ## # """ #?????????????????? | | ### """"" ## # #?????????????????? | | ??# """ ########+### #?????????????????? | | ??################# #?# #?????????????????? | +----------------------------------------------------+ Best States ------------- Heat Dissipation 28 Energy Generation 10 Energy Capacity 250 Matter Stores 300 Matter Capacity 300 Sight Range 16 Terrain Scan Density 10 Evasion (%) 55 Targeting Accuracy 6 Item Schematics ----------------- Lgt. Armor Plating | -9/Materials | Scanalyzed Robot Schematics ------------------ None Fabricated ------------ Nothing Repaired ---------- Aluminum Leg | 78% | -9/Materials Alien Tech Used ----------------- None Achievements -------------- Risk Taker Shopping List Unlikely Earthworm Challenges ------------ None Game ------ Seed ActuatorAntigravJammer Manual? 0 Play Time 00:45:17 Cumulative 2.4 hours Start 2025.10.12 @ 15:27:32 End 2025.10.12 @ 16:13:40 Sessions 6 Manual Loads 0 Difficulty Rogue Special Mode None Game No. 6 Rogue 6 Adventurer 0 Explorer 0 Win Type - Total 0 Types 0/0/0/0/0/0/0/0/0/0 Lore% 0 Gallery% 2 Achievement% 3 Wizard Run 0 Options --------- Layout 0 ASCII 0 Keyboard 1 Movement Arrows Keybinds 0 Fullscreen 1 Font 24/Smallcaps Map View 38x25 Zoom Use 97% Tactical HUD 1 Map Filters NONE Filters NONE Steam 1 RUN: c0b2b0da-57fc-4475-bcca-3239231908aa